fUSD/lending_fUSD_20240814
["ID","MTS","AMOUNT","RATE_DAILY","PERIOD"]
[334842102,1723607481727,-500.0,0.00014794,2]
[334842103,1723607481736,-1900.43,0.00014794,2]
[334842104,1723607481745,-2321.53,0.00014794,2]
[334842105,1723607481754,-500.0,0.00014794,2]
[334842106,1723607481763,-500.0,0.00014794,2]
[334842107,1723607481772,-1225.74,0.00014794,2]
[334842108,1723607481781,-751.13,0.00014794,2]
[334842109,1723607481790,-500.0,0.00014794,2]
[334842110,1723607481799,-2710.3,0.00014794,2]
[334842111,1723607481808,-500.0,0.00014794,2]
[334842112,1723607481817,-590.22,0.00014794,2]
[334842113,1723607481826,-1784.2,0.00014794,2]
[334842114,1723607481835,-1096.21,0.00014794,2]
[334842115,1723607481844,-500.0,0.00014794,2]
[334842116,1723607481853,-500.0,0.00014794,2]
[334842117,1723607481862,-500.0,0.00014794,2]
[334842118,1723607481871,-500.0,0.00014794,2]
[334842119,1723607481880,-500.0,0.00014794,2]
[334842120,1723607481889,-625.56318353,0.00014794,2]
[334842121,1723607481898,-843.23,0.00014794,2]
[334842122,1723607481908,-500.0,0.00014794,2]
[334842123,1723607481917,-500.0,0.00014794,2]
[334842124,1723607481926,-500.0,0.00014794,2]
[334842125,1723607481935,-630.2,0.00014794,2]
[334842126,1723607481944,-500.0,0.00014794,2]
[334842127,1723607481953,-500.0,0.00014794,2]
[334842128,1723607481962,-1522.48,0.00014794,2]
[334842129,1723607481971,-500.0,0.00014794,2]
[334842130,1723607481979,-913.08,0.00014794,2]
[334842131,1723607481988,-648.5,0.00014794,2]
[334842132,1723607481997,-500.0,0.00014794,2]
[334842133,1723607482006,-1893.09,0.00014794,2]
[334842134,1723607482015,-915.27,0.00014794,2]
[334842135,1723607482024,-500.0,0.00014794,2]
[334842136,1723607482033,-2186.94,0.00014794,2]
[334842137,1723607482042,-3275.38,0.00014794,2]
[334842138,1723607482051,-500.0,0.00014794,2]
[334842139,1723607482060,-500.0,0.00014794,2]
[334842140,1723607482069,-1677.03,0.00014794,2]
[334842141,1723607482078,-500.0,0.00014794,2]
[334842142,1723607482091,-1309.3,0.00014794,2]
[334842143,1723607482104,-856.83,0.00014794,2]
[334842144,1723607482113,-500.0,0.00014794,2]
[334842145,1723607482125,-500.0,0.00014794,2]
[334842146,1723607482135,-794.25,0.00014794,2]
[334842147,1723607482146,-1414.57,0.00014794,2]
[334842148,1723607482155,-1252.5,0.00014794,2]
[334842149,1723607482165,-3148.01,0.00014794,2]
[334842150,1723607482175,-1119.98,0.00014794,2]
[334842151,1723607482183,-696.1,0.00014794,2]
[334842152,1723607482193,-500.0,0.00014794,2]
[334842153,1723607482203,-500.0,0.00014794,2]
[334842154,1723607482212,-3372.08,0.00014794,2]
[334842155,1723607482221,-500.0,0.00014794,2]
[334842156,1723607482231,-1053.98,0.00014794,2]
[334842157,1723607482240,-1421.12,0.00014794,2]
[334842158,1723607482250,-500.0,0.00014794,2]
[334842159,1723607482260,-6656.08,0.00014794,2]
[334842160,1723607482269,-863.04,0.00014794,2]
[334842161,1723607482279,-1185.24,0.00014794,2]
[334842162,1723607482288,-500.0,0.00014794,2]
[334842163,1723607482299,-640.54,0.00014794,2]
[334842164,1723607482309,-1337.92,0.00014794,2]
[334842165,1723607482319,-500.0,0.00014794,2]
[334842166,1723607482328,-881.61,0.00014794,2]
[334842167,1723607482338,-500.0,0.00014794,2]
[334842168,1723607482348,-500.0,0.00014794,2]
[334842169,1723607482358,-4803.1,0.00014794,2]
[334842170,1723607482369,-548.08,0.00014794,2]
[334842171,1723607482379,-500.0,0.00014794,2]
[334842172,1723607482389,-3535.74,0.00014794,2]
[334842173,1723607482399,-500.0,0.00014794,2]
[334842174,1723607482409,-500.0,0.00014794,2]
[334842175,1723607482418,-1286.34,0.00014794,2]
[334842176,1723607482428,-700.94,0.00014794,2]
[334842177,1723607482438,-500.0,0.00014794,2]
[334842178,1723607482448,-500.0,0.00014794,2]
[334842179,1723607482458,-500.0,0.00014794,2]
[334842180,1723607482467,-594.73121765,0.00014794,2]
[334842181,1723607482477,-500.0,0.00014794,2]
[334842182,1723607482487,-605.71,0.00014794,2]
[334842183,1723607482496,-500.0,0.00014794,2]
[334842184,1723607482506,-402.6869366,0.00014794,2]
[334842185,1723607482515,-500.0,0.00014794,2]
[334842186,1723607482525,-500.0,0.00014794,2]
[334842187,1723607482535,-2533.03,0.00014794,2]
[334842188,1723607482545,-655.89,0.00014794,2]
[334842189,1723607482555,-528.71,0.00014794,2]
[334842190,1723607482565,-500.0,0.00014794,2]
[334842191,1723607482576,-694.17,0.00014794,2]
[334842192,1723607482587,-500.0,0.00014794,2]
[334842193,1723607482596,-500.0,0.00014794,2]
[334842194,1723607482606,-1287.07,0.00014794,2]
[334842195,1723607482616,-764.7,0.00014794,2]
[334842196,1723607482626,-7712.44,0.00014794,2]
[334842197,1723607482635,-500.0,0.00014794,2]
[334842198,1723607482645,-826.02,0.00014794,2]
[334842199,1723607482656,-3051.08,0.00014794,2]
[334842200,1723607482666,-500.0,0.00014794,2]
[334842201,1723607482676,-2301.35,0.00014794,2]
[334842202,1723607482686,-892.62,0.00014794,2]
[334842203,1723607482696,-500.0,0.00014794,2]
[334842204,1723607482706,-573.74,0.00014794,2]
[334842205,1723607482715,-500.0,0.00014794,2]
[334842206,1723607482726,-1107.8,0.00014794,2]
[334842207,1723607482735,-1861.4,0.00014794,2]
[334842208,1723607482745,-500.0,0.00014794,2]
[334842209,1723607482754,-2273.24,0.00014794,2]
[334842210,1723607482763,-2591.06,0.00014794,2]
[334842211,1723607482773,-500.0,0.00014794,2]
[334842212,1723607482783,-665.28,0.00014794,2]
[334842213,1723607482793,-757.85,0.00014794,2]
[334842214,1723607482804,-178.4071049,0.00014794,2]
[334842215,1723607482814,-618.25,0.00014794,2]
[334842216,1723607482824,-2359.68,0.00014794,2]
[334842217,1723607482833,-500.0,0.00014794,2]
[334842218,1723607482843,-1206.64,0.00014794,2]
[334842219,1723607482853,-992.14,0.00014794,2]
[334842220,1723607482862,-616.31,0.00014794,2]
[334842221,1723607482872,-500.0,0.00014794,2]
[334842222,1723607482882,-442.27258185,0.00014794,2]
[334842223,1723607482894,-1728.26,0.00014794,2]
[334842224,1723607482904,-1436.09,0.00014794,2]
[334842225,1723607482914,-1282.64,0.00014794,2]
[334842226,1723607482924,-500.0,0.00014794,2]
[334842227,1723607482934,-1719.54,0.00014794,2]
[334842228,1723607482945,-1106.45,0.00014794,2]
[334842229,1723607482955,-567.82,0.00014794,2]
[334842230,1723607482966,-21892.84,0.00014794,2]
[334842231,1723607482977,-1004.98,0.00014794,2]
[334842232,1723607482986,-1425.33,0.00014794,2]
[334842233,1723607482996,-12983.85,0.00014794,2]
[334842234,1723607483006,-500.0,0.00014794,2]
[334842235,1723607483016,-794.39,0.00014794,2]
[334842236,1723607483026,-500.0,0.00014794,2]
[334842237,1723607483036,-947.71,0.00014794,2]
[334842238,1723607483046,-1334.68,0.00014794,2]
[334842239,1723607483056,-2185.69,0.00014794,2]
[334842240,1723607483066,-74311.05,0.00014794,2]
[334842241,1723607483076,-2926.39,0.00014794,2]
[334842242,1723607483086,-11265.49,0.00014794,2]
[334842243,1723607483097,-500.0,0.00014794,2]
[334842244,1723607483107,-827.11,0.00014794,2]
[334842245,1723607483117,-684.84,0.00014794,2]
[334842246,1723607483129,-19652.25,0.00014794,2]
[334842247,1723607483154,-500.0,0.00014794,2]
[334842248,1723607483164,-949.5,0.00014794,2]
[334842249,1723607483174,-500.0,0.00014794,2]
[334842250,1723607483184,-2325.77,0.00014794,2]
[334842251,1723607483193,-1060.07,0.00014794,2]
[334842252,1723607483204,-500.0,0.00014794,2]
[334842253,1723607483214,-931.34,0.00014794,2]
[334842254,1723607483224,-500.0,0.00014794,2]
[334842255,1723607483234,-11770.95,0.00014794,2]
[334842256,1723607483244,-542.79,0.00014794,2]
[334842257,1723607483253,-3216.15,0.00014794,2]
[334842258,1723607483263,-996.72,0.00014794,2]
[334842259,1723607483274,-500.0,0.00014794,2]
[334842260,1723607483284,-500.0,0.00014794,2]
[334842261,1723607483294,-864.22,0.00014794,2]
[334842262,1723607483303,-1090.63,0.00014794,2]
[334842263,1723607483313,-754.69,0.00014794,2]
[334842264,1723607483323,-500.0,0.00014794,2]
[334842265,1723607483333,-4142.45,0.00014794,2]
[334842266,1723607483342,-500.0,0.00014794,2]
[334842267,1723607483352,-16309.16,0.00014794,2]
[334842268,1723607483362,-2654.22,0.00014794,2]
[334842269,1723607483372,-508.70422618,0.00014794,2]
[334842270,1723607483382,-25466.62,0.00014794,2]
[334842271,1723607483398,-500.0,0.00014794,2]
[334842272,1723607483408,-4541.96,0.00014794,2]
[334842273,1723607483419,-519.09,0.00014794,2]
[334842274,1723607483429,-500.0,0.00014794,2]
[334842275,1723607483438,-539.83,0.00014794,2]
[334842276,1723607483448,-499.49071606,0.00014794,2]
[334842277,1723607483457,-889.01,0.00014794,2]
[334842278,1723607483467,-500.0,0.00014794,2]
[334842279,1723607483477,-2396.89,0.00014794,2]
[334842280,1723607483486,-1347.69,0.00014794,2]
[334842281,1723607483496,-500.0,0.00014794,2]
[334842282,1723607483506,-677.92,0.00014794,2]
[334842283,1723607483516,-6138.85,0.00014794,2]
[334842284,1723607483526,-9972.45,0.00014794,2]
[334842285,1723607483536,-1022.55,0.00014794,2]
[334842286,1723607483546,-500.0,0.00014794,2]
[334842287,1723607483556,-809.32,0.00014794,2]
[334842288,1723607483566,-642.44,0.00014794,2]
[334842289,1723607483576,-500.0,0.00014794,2]
[334842290,1723607483585,-8165.91,0.00014794,2]
[334842291,1723607483595,-1024.38,0.00014794,2]
[334842292,1723607483604,-2852.39,0.00014794,2]
[334842293,1723607483614,-1105.51,0.00014794,2]
[334842294,1723607483625,-5016.05,0.00014794,2]
[334842295,1723607483635,-779.07,0.00014794,2]
[334842296,1723607483646,-2644.48,0.00014794,2]
[334842297,1723607483656,-4884.61,0.00014794,2]
[334842298,1723607483666,-5077.56,0.00014794,2]
[334842299,1723607483676,-500.0,0.00014794,2]
[334842300,1723607483686,-500.0,0.00014794,2]
[334842301,1723607483696,-500.0,0.00014794,2]
[334842302,1723607483706,-14387.22,0.00014794,2]
[334842303,1723607483717,-500.0,0.00014794,2]
[334842304,1723607483728,-6250.39,0.00014794,2]
[334842305,1723607483738,-1108.79,0.00014794,2]
[334842306,1723607483748,-700.09,0.00014794,2]
[334842307,1723607483759,-2760.64,0.00014794,2]
[334842308,1723607483769,-1348.31,0.00014794,2]
[334842309,1723607483779,-661.27,0.00014794,2]
[334842310,1723607483789,-860.11,0.00014794,2]
[334842311,1723607483799,-500.0,0.00014794,2]
[334842312,1723607483809,-844.08,0.00014794,2]
[334842313,1723607483819,-7897.51,0.00014794,2]
[334842314,1723607483828,-505.48712818,0.00014794,2]
[334842315,1723607483838,-500.0,0.00014794,2]
[334842316,1723607483848,-6779.45,0.00014794,2]
[334842317,1723607483857,-499.80129107,0.00014794,2]
[334842318,1723607483868,-2175.6,0.00014794,2]
[334842319,1723607483878,-1926.56,0.00014794,2]
[334842320,1723607483889,-500.0,0.00014794,2]
[334842321,1723607483900,-500.0,0.00014794,2]
[334842322,1723607483910,-7867.37,0.00014794,2]
[334842323,1723607483921,-966.36,0.00014794,2]
[334842324,1723607483931,-2876.73,0.00014794,2]
[334842325,1723607483942,-20943.27,0.00014794,2]
[334842326,1723607483951,-500.0,0.00014794,2]
[334842327,1723607483961,-500.0,0.00014794,2]
[334842328,1723607483971,-772.3,0.00014794,2]
[334842329,1723607483982,-620.71,0.00014794,2]
[334842330,1723607483991,-500.0,0.00014794,2]
[334842331,1723607484001,-513.11,0.00014794,2]
[334842332,1723607484011,-656.4,0.00014794,2]
[334842333,1723607484021,-500.0,0.00014794,2]
[334842334,1723607484031,-818.88,0.00014794,2]
[334842335,1723607484041,-668.43,0.00014794,2]
[334842336,1723607484051,-500.0,0.00014794,2]
[334842337,1723607484061,-500.0,0.00014794,2]
[334842338,1723607484071,-3735.01,0.00014794,2]
[334842339,1723607484080,-500.0,0.00014794,2]
[334842340,1723607484090,-12745.7,0.00014794,2]
[334842341,1723607484100,-1936.62,0.00014794,2]
[334842342,1723607484110,-1883.94,0.00014794,2]
[334842343,1723607484122,-4612.26,0.00014794,2]
[334842344,1723607484136,-500.0,0.00014794,2]
[334842345,1723607484152,-1326.52,0.00014794,2]
[334842346,1723607484163,-1144.63,0.00014794,2]
[334842347,1723607484173,-500.0,0.00014794,2]
[334842348,1723607484183,-3537.48,0.00014794,2]
[334842349,1723607484193,-23504.48,0.00014794,2]
[334842350,1723607484203,-500.0,0.00014794,2]
[334842351,1723607484213,-500.0,0.00014794,2]
[334842352,1723607484223,-500.0,0.00014794,2]
[334842353,1723607484233,-3439.86,0.00014794,2]
[334842354,1723607484242,-500.0,0.00014794,2]
[334842355,1723607484252,-1749.84,0.00014794,2]
[334842356,1723607484262,-500.0,0.00014794,2]
[334842357,1723607484272,-1169.49,0.00014794,2]
[334842358,1723607484281,-500.0,0.00014794,2]
[334842359,1723607484291,-2025.45,0.00014794,2]
[334842360,1723607484301,-861.16,0.00014794,2]
[334842361,1723607484311,-500.0,0.00014794,2]
[334842362,1723607484321,-500.0,0.00014794,2]
[334842363,1723607484331,-500.0,0.00014794,2]
[334842364,1723607484341,-7943.45,0.00014794,2]
[334842365,1723607484351,-500.0,0.00014794,2]
[334842366,1723607484361,-960.52,0.00014794,2]
[334842367,1723607484371,-13270.11,0.00014794,2]
[334842368,1723607484380,-731.33,0.00014794,2]
[334842369,1723607484393,-500.0,0.00014794,2]
[334842370,1723607484402,-1144.12,0.00014794,2]
[334842371,1723607484412,-1646.88,0.00014794,2]
[334842372,1723607484422,-789.39,0.00014794,2]
[334842373,1723607484431,-853.31,0.00014794,2]
[334842374,1723607484442,-2551.38,0.00014794,2]
[334842375,1723607484453,-867.71,0.00014794,2]
[334842376,1723607484717,-5047.14,0.00014794,2]
[334842377,1723607484727,-1652.02,0.00014794,2]
[334842378,1723607484737,-3458.14,0.00014794,2]
[334842379,1723607484746,-500.0,0.00014794,2]
[334842380,1723607484756,-500.0,0.00014794,2]
[334842381,1723607484766,-500.0,0.00014794,2]
[334842382,1723607484775,-1116.13,0.00014794,2]
[334842383,1723607484784,-500.0,0.00014794,2]
[334842384,1723607484794,-500.0,0.00014794,2]
[334842385,1723607484803,-1828.19,0.00014794,2]
[334842386,1723607484813,-2030.16,0.00014794,2]
[334842387,1723607484822,-981.94,0.00014794,2]
[334842388,1723607484831,-477.18692472,0.00014794,2]
[334842389,1723607484840,-618.17,0.00014794,2]
[334842390,1723607484850,-816.29,0.00014794,2]
[334842391,1723607484859,-500.0,0.00014794,2]
[334842392,1723607484868,-1632.54,0.00014794,2]
[334842393,1723607484878,-1877.65,0.00014794,2]
[334842394,1723607484888,-500.0,0.00014794,2]
[334842395,1723607484898,-500.0,0.00014794,2]
[334842396,1723607484909,-3032.3,0.00014794,2]
[334842397,1723607484919,-2405.3,0.00014794,2]
[334842398,1723607484929,-527.4,0.00014794,2]
[334842399,1723607484940,-3859.03,0.00014794,2]
[334842400,1723607484950,-2540.67,0.00014794,2]
[334842401,1723607484960,-511.84,0.00014794,2]
[334842402,1723607484970,-5924.29,0.00014794,2]
[334842403,1723607484980,-500.0,0.00014794,2]
[334842404,1723607484991,-500.0,0.00014794,2]
[334842405,1723607485000,-714.75,0.00014794,2]
[334842406,1723607485010,-555.4,0.00014794,2]
[334842407,1723607485019,-2044.59,0.00014794,2]
[334842408,1723607485029,-14638.33,0.00014794,2]
[334842409,1723607485038,-2856.42,0.00014794,2]
[334842410,1723607485048,-500.0,0.00014794,2]
[334842411,1723607485058,-3003.74,0.00014794,2]
[334842412,1723607485068,-6014.88,0.00014794,2]
[334842413,1723607485081,-1266.06,0.00014794,2]
[334842414,1723607485091,-2719.38,0.00014794,2]
[334842415,1723607485101,-500.0,0.00014794,2]
[334842416,1723607485111,-7501.73,0.00014794,2]
[334842417,1723607485123,-852.97,0.00014794,2]
[334842418,1723607485134,-500.0,0.00014794,2]
[334842419,1723607485147,-2454.88,0.00014794,2]
[334842420,1723607485156,-500.0,0.00014794,2]
[334842421,1723607485167,-1734.13,0.00014794,2]
[334842422,1723607485176,-1936.84,0.00014794,2]
[334842423,1723607485185,-500.0,0.00014794,2]
[334842424,1723607485195,-500.0,0.00014794,2]
[334842425,1723607485205,-500.0,0.00014794,2]
[334842426,1723607485216,-5008.91,0.00014794,2]
[334842427,1723607485226,-500.0,0.00014794,2]
[334842428,1723607485235,-500.0,0.00014794,2]
[334842429,1723607485245,-3352.55,0.00014794,2]
[334842430,1723607485254,-2136.98,0.00014794,2]
[334842431,1723607485264,-3579.33,0.00014794,2]
[334842432,1723607485274,-512.05,0.00014794,2]
[334842433,1723607485284,-3081.75,0.00014794,2]
[334842434,1723607485294,-1834.77,0.00014794,2]
[334842435,1723607485304,-2280.59,0.00014794,2]
[334842436,1723607485314,-2616.01,0.00014794,2]
[334842437,1723607485324,-500.0,0.00014794,2]
[334842438,1723607485334,-621.9,0.00014794,2]
[334842439,1723607485343,-186.6,0.00014794,2]
[334842440,1723607485353,-4828.17,0.00014794,2]
[334842441,1723607485363,-500.0,0.00014794,2]
[334842442,1723607485374,-500.0,0.00014794,2]
[334842443,1723607485385,-676.11,0.00014794,2]
[334842444,1723607485398,-5350.32,0.00014794,2]
[334842445,1723607485408,-3896.23,0.00014794,2]
[334842446,1723607485418,-677.37,0.00014794,2]
[334842447,1723607485428,-7808.28,0.00014794,2]
[334842448,1723607485438,-500.0,0.00014794,2]
[334842449,1723607485448,-500.0,0.00014794,2]
[334842450,1723607485458,-1579.62,0.00014794,2]
[334842451,1723607485467,-2868.97,0.00014794,2]
[334842452,1723607485477,-670.24,0.00014794,2]
[334842453,1723607485487,-500.0,0.00014794,2]
[334842454,1723607485496,-2601.3,0.00014794,2]
[334842455,1723607485506,-2687.31,0.00014794,2]
[334842456,1723607485515,-2583.71,0.00014794,2]
[334842457,1723607485525,-3504.73,0.00014794,2]
[334842458,1723607485534,-500.0,0.00014794,2]
[334842459,1723607485544,-3882.13,0.00014794,2]
[334842460,1723607485554,-4107.19,0.00014794,2]
[334842461,1723607485563,-698.86,0.00014794,2]
[334842462,1723607485573,-500.0,0.00014794,2]
[334842463,1723607485583,-394.76625228,0.00014794,2]
[334842464,1723607485593,-500.0,0.00014794,2]
[334842465,1723607485603,-2236.74,0.00014794,2]
[334842466,1723607485612,-500.0,0.00014794,2]
[334842467,1723607485621,-500.0,0.00014794,2]
[334842468,1723607485631,-786.88,0.00014794,2]
[334842469,1723607485643,-1100.89,0.00014794,2]
[334842470,1723607485652,-639.71,0.00014794,2]
[334842471,1723607485662,-500.0,0.00014794,2]
[334842472,1723607485671,-742.57,0.00014794,2]
[334842473,1723607485680,-500.0,0.00014794,2]
[334842474,1723607485690,-691.92,0.00014794,2]
[334842475,1723607485699,-1668.19,0.00014794,2]
[334842476,1723607485709,-500.0,0.00014794,2]
[334842477,1723607485718,-8906.01,0.00014794,2]
[334842478,1723607485728,-3096.07,0.00014794,2]
[334842479,1723607485738,-688.31,0.00014794,2]
[334842480,1723607485747,-500.0,0.00014794,2]
[334842481,1723607485756,-500.0,0.00014794,2]
[334842482,1723607485766,-1386.58,0.00014794,2]
[334842483,1723607485775,-521.01,0.00014794,2]
[334842484,1723607485785,-2079.25,0.00014794,2]
[334842485,1723607485795,-3714.26,0.00014794,2]
[334842486,1723607485805,-500.0,0.00014794,2]
[334842487,1723607485815,-500.0,0.00014794,2]
[334842488,1723607485825,-866.22,0.00014794,2]
[334842489,1723607485835,-7418.61,0.00014794,2]
[334842490,1723607485845,-500.0,0.00014794,2]
[334842491,1723607485855,-887.71,0.00014794,2]
[334842492,1723607485865,-500.0,0.00014794,2]
[334842493,1723607485875,-3269.23,0.00014794,2]
[334842494,1723607485884,-500.0,0.00014794,2]
[334842495,1723607485895,-1076.95,0.00014794,2]
[334842496,1723607485905,-707.28,0.00014794,2]
[334842497,1723607485914,-5659.08,0.00014794,2]
[334842498,1723607485924,-2929.81,0.00014794,2]
[334842499,1723607485933,-500.0,0.00014794,2]
[334842500,1723607485943,-2501.36,0.00014794,2]
[334842501,1723607485953,-1043.59,0.00014794,2]
[334842502,1723607485963,-500.0,0.00014794,2]
[334842503,1723607485973,-500.0,0.00014794,2]
[334842504,1723607485983,-3153.8,0.00014794,2]
[334842505,1723607485993,-500.0,0.00014794,2]
[334842506,1723607486003,-1497.14,0.00014794,2]
[334842507,1723607486012,-3648.88,0.00014794,2]
[334842508,1723607486022,-4369.58,0.00014794,2]
[334842509,1723607486032,-296.00655906,0.00014794,2]
[334842510,1723607486042,-500.0,0.00014794,2]
[334842511,1723607486051,-10558.66,0.00014794,2]
[334842512,1723607486062,-3991.69,0.00014794,2]
[334842513,1723607486072,-617.95,0.00014794,2]
[334842514,1723607486083,-543.63,0.00014794,2]
[334842515,1723607486092,-2141.4,0.00014794,2]
[334842516,1723607486102,-2617.38,0.00014794,2]
[334842517,1723607486112,-4898.32,0.00014794,2]
[334842518,1723607486122,-500.0,0.00014794,2]
[334842519,1723607486134,-1048.11,0.00014794,2]
[334842520,1723607486146,-2200.01,0.00014794,2]
[334842521,1723607486155,-500.0,0.00014794,2]
[334842522,1723607486165,-680.5,0.00014794,2]
[334842523,1723607486175,-525.19,0.00014794,2]
[334842524,1723607486184,-3069.08,0.00014794,2]
[334842525,1723607486194,-1101.33,0.00014794,2]
[334842526,1723607486204,-4095.44,0.00014794,2]
[334842527,1723607486213,-3093.95,0.00014794,2]
[334842528,1723607486223,-1974.21,0.00014794,2]
[334842529,1723607486233,-610.87475567,0.00014794,2]
[334842530,1723607486242,-1153.12,0.00014794,2]
[334842531,1723607486252,-440.33811776,0.00014794,2]
[334842532,1723607486262,-500.0,0.00014794,2]
[334842533,1723607486271,-1698.84,0.00014794,2]
[334842534,1723607486281,-1954.47,0.00014794,2]
[334842535,1723607486290,-500.0,0.00014794,2]
[334842536,1723607486300,-500.0,0.00014794,2]
[334842537,1723607486310,-500.0,0.00014794,2]
[334842538,1723607486319,-1008.04,0.00014794,2]
[334842539,1723607486329,-1831.82,0.00014794,2]
[334842540,1723607486339,-500.0,0.00014794,2]
[334842541,1723607486349,-2865.91,0.00014794,2]
[334842542,1723607486359,-15566.61,0.00014794,2]
[334842543,1723607486370,-5487.49,0.00014794,2]
[334842544,1723607486381,-500.0,0.00014794,2]
[334842545,1723607486391,-1963.56,0.00014794,2]
[334842546,1723607486401,-500.0,0.00014794,2]
[334842547,1723607486411,-686.68,0.00014794,2]
[334842548,1723607486422,-597.8,0.00014794,2]
[334842549,1723607486431,-500.0,0.00014794,2]
[334842550,1723607486442,-500.0,0.00014794,2]
[334842551,1723607486452,-500.0,0.00014794,2]
[334842552,1723607486462,-1884.73,0.00014794,2]
[334842553,1723607486472,-500.0,0.00014794,2]
[334842554,1723607486483,-246.954966,0.00014795,2]
[334842555,1723607486492,-1399.0,0.00015,2]
[334842556,1723607486503,-8123.0,0.00015,2]
[334842557,1723607486512,-731.31,0.00015068,2]
[334842558,1723607486523,-500.0,0.00015068,2]
[334842559,1723607486532,-688.3,0.00015068,2]
[334842560,1723607486541,-508.14,0.00015068,2]
[334842561,1723607486551,-540.98018331,0.00015068,2]
[334842562,1723607486560,-563.09,0.00015068,2]
[334842563,1723607486570,-500.0,0.00015068,2]
[334842564,1723607486579,-712.92,0.00015068,2]
[334842565,1723607486588,-500.0,0.00015068,2]
[334842566,1723607486598,-500.0,0.00015068,2]
[334842567,1723607486607,-500.0,0.00015068,2]
[334842568,1723607486617,-902.09,0.00015068,2]
[334842569,1723607486626,-500.0,0.00015068,2]
[334842570,1723607486636,-500.0,0.00015068,2]
[334842571,1723607486647,-283.25928096,0.00015068,2]
[334842572,1723607486656,-701.14,0.00015068,2]
[334842573,1723607486666,-506.71,0.00015068,2]
[334842574,1723607486675,-1472.55,0.00015068,2]
[334842575,1723607486684,-935.07,0.00015068,2]
[334842576,1723607486693,-509.43995346,0.00015068,2]
[334842577,1723607486703,-500.0,0.00015068,2]
[334842578,1723607486711,-751.76,0.00015068,2]
[334842579,1723607486721,-1022.73,0.00015068,2]
[334842580,1723607486730,-1673.07,0.00015068,2]
[334842581,1723607486739,-891.04,0.00015068,2]
[334842582,1723607486750,-622.07,0.00015068,2]
[334842583,1723607486759,-781.14,0.00015068,2]
[334842584,1723607486769,-500.0,0.00015068,2]
[334842585,1723607486779,-500.0,0.00015068,2]
[334842586,1723607486788,-500.0,0.00015068,2]
[334842587,1723607486797,-500.0,0.00015068,2]
[334842588,1723607486807,-500.0,0.00015068,2]
[334842589,1723607486817,-500.0,0.00015068,2]
[334842590,1723607486827,-500.0,0.00015068,2]
[334842591,1723607486836,-500.0,0.00015068,2]
[334842592,1723607486846,-547.55,0.00015068,2]
[334842593,1723607486855,-812.22,0.00015068,2]
[334842594,1723607486864,-500.0,0.00015068,2]
[334842595,1723607486873,-637.41,0.00015068,2]
[334842596,1723607486883,-1070.95,0.00015068,2]
[334842597,1723607486893,-1063.75,0.00015068,2]
[334842598,1723607486903,-727.22,0.00015068,2]
[334842599,1723607486920,-500.0,0.00015068,2]
[334842600,1723607486937,-500.0,0.00015068,2]
[334842601,1723607486950,-1698.66,0.00015068,2]